Workbook

Sheet Übersicht
A1: Entwurf | B1: R-CHOP 14 - Rituximab 375 / Cyclophosphamid 750 / Doxorubicin 50 / Vincristin 2 / Prednisolon 100, diffus großzelliges B-Non-Hodgkin-Lymphom, Zyklus 1-6 (PID=112 V1.1) | K1: ="Übersicht Z" & Zyklusnummer -> Übersicht Z1
B2: Doe, John | F2: geb. | G2: 1967-01-01 | H2: Alter | I2: =IF(PatientGeboren=0,"",DATEDIF(PatientGeboren,NOW(),"y") & "J " & MOD(DATEDIF(PatientGeboren,NOW(),"m"),12) & "M") -> 54J 8M | J2: Geschlecht | K2: m
B3: Diagnose | C3: diffus großzelliges NHL | F3: Stadium | G3: IIB | H3: Therapiemodus | I3: Erstlinie | J3: Erstdiagnose | K3: 2021-09-06
B4: Größe | C4: 170 | D4: Gewicht | E4: 75 | F4: KOF | G4: =KG^0.425*GroesseCM^0.725/139.315 -> 1.861995494 | H4: Infusionsarm | I4: rechts | J4: Pat-ID | K4: 5
B5: Serum-Kreatinin | C5: 0.8 | D5: Datum | F5: ="GFR " & shortGFR(sGFR) -> GFR NM | G5: =fGFR(KG,GroesseCM,PatientAlter,PatientGeschlecht,PatientSerumKreatinin) -> 102.3168019 | H5: Port | I5: rechts | J5: Auftragsnummer | K5: 5
B6: Zyklus Nr. | C6: 1 | D6: von | E6: 6 | G6: 14 | H6: =ROUND((NOW()-PatientGeboren) / 365,0) -> 55
B7: erster Tag | C7: 2021-09-06 | D7: Intervalltage | E7: 14 | F7: Zyklusende | G7: =IF(OR(ISBLANK(Therapiebeginn),ISBLANK(IntervallTage)), "", Therapiebeginn+IntervallTage-1) -> 2021-09-19 | H7: erster Zyklus | I7: 2021-09-06 | J7: nächster Zyklus | K7: =IF(OR(ISBLANK(Therapiebeginn),ISBLANK(IntervallTage),EmpfZyklen=1),"",Therapiebeginn+IntervallTage) -> 2021-09-20
B8: Hinweise
B9: Risiken | C9: Emetogenität (MASCC/ESMO): moderat (30% - 90%); Neutropenie: sehr hoch (> 41%); febrile Neutropenie: hoch (> 20%); Anämie Hb unter 8g/dl: hoch (16% - 30%); Neuropathie: CTC AE (°3-4: 7%)
B10: Klassifikation | C10: aktueller Standard; Intensität: Standard-Dosis; Modus: Erstlinie; Intention: kurativ
B11: Indikationen | C11: NHL, B-Zell-Typ, diffus großzelliges; NHL, B-Zell-Typ, follikuläres Grad IIIb
B12: Empfehlungen | C12: Onkopedia, ESMO, NCCN
B13: Herkunft | C13: Kooperation: German High-Grade Non-Hodgkin Lymphoma Study Group (DSHNHL), RICOVER-60; ursprünglicher Autor: Pfreundschuh M
B14: Literatur | C14: Pfreundschuh M, Lancet Oncol 2008 Feb;9(2):105-16
C15: Brusamolino E, Haematologica 2006 Apr;91(4):496-502
C16: Cunningham D, Lancet 2013 May 25;381(9880):1817-26
B17: Dateipfad | C17: =optiFilename() -> C:\Users\wicken\Desktop\opti-demo-excel\Demo_R-CHOP 14 (RITU375_CYCL750_DOXO50_VNCR2_PRED100), DLBCL, Z1-6_PID112_V1_1.xlsm
B19: Tag | C19: 1 | D19: 2 | E19: 3 | F19: 4 | G19: 5
B20: Datum | C20: =Therapiebeginn -> 2021-09-06 | D20: =PDateOV_1+1 -> 2021-09-07 | E20: =PDateOV_2+1 -> 2021-09-08 | F20: =PDateOV_3+1 -> 2021-09-09 | G20: =PDateOV_4+1 -> 2021-09-10
B21: Flüssigkeitszufuhr: Jonosteril
B22: Jonosteril (i.v.) | C22: =PMSID_4241_1_A_D -> 500 | D22: =PMSID_4241_2_A_D -> 0 | E22: =PMSID_4241_3_A_D -> 0 | F22: =PMSID_4241_4_A_D -> 0 | G22: =PMSID_4241_5_A_D -> 0
B23: % Dosis | C23: 1 | D23: 0 | E23: 0 | F23: 0 | G23: 0
B24: normale Dosierung | C24: 500 | D24: 500 | E24: 500 | F24: 500 | G24: 500
B26: Allergieprophylaxe: Rituximab Allergieprophylaxe (Paracetamol, Dimetinden)
B27: Paracetamol (p.o.) | C27: =PMSID_4242_1_A_D -> 1000 | D27: =PMSID_4242_2_A_D -> 0 | E27: =PMSID_4242_3_A_D -> 0 | F27: =PMSID_4242_4_A_D -> 0 | G27: =PMSID_4242_5_A_D -> 0
B28: % Dosis | C28: 1 | D28: 0 | E28: 0 | F28: 0 | G28: 0
B29: normale Dosierung | C29: 1000 | D29: 1000 | E29: 1000 | F29: 1000 | G29: 1000
B31: Dimetinden (i.v.) | C31: =PMSID_4243_1_A_D -> 4 | D31: =PMSID_4243_2_A_D -> 0 | E31: =PMSID_4243_3_A_D -> 0 | F31: =PMSID_4243_4_A_D -> 0 | G31: =PMSID_4243_5_A_D -> 0
B32: % Dosis | C32: 1 | D32: 0 | E32: 0 | F32: 0 | G32: 0
B33: normale Dosierung | C33: 4 | D33: 4 | E33: 4 | F33: 4 | G33: 4
B35: Antiemese: Emetogenität moderat, GRAN i.v., ohne DEXA d1-3
B36: Granisetron (i.v.) | C36: =PMSID_4244_1_A_D -> 1 | D36: =PMSID_4244_2_A_D -> 0 | E36: =PMSID_4244_3_A_D -> 0 | F36: =PMSID_4244_4_A_D -> 0 | G36: =PMSID_4244_5_A_D -> 0
B37: % Dosis | C37: 1 | D37: 0 | E37: 0 | F37: 0 | G37: 0
B38: normale Dosierung | C38: 1 | D38: 1 | E38: 1 | F38: 1 | G38: 1
B40: Supportive Therapie: Mesna i.v., Stunde 0 (vor), p.o. 2h, 6 h nach Beginn Cyclophosphamid
B41: Mesna (i.v.) | C41: =PMSID_4245_1_A_D -> 279.2993241 | D41: =PMSID_4245_2_A_D -> 0 | E41: =PMSID_4245_3_A_D -> 0 | F41: =PMSID_4245_4_A_D -> 0 | G41: =PMSID_4245_5_A_D -> 0
B42: % Dosis | C42: 1 | D42: 0 | E42: 0 | F42: 0 | G42: 0
B43: normale Dosierung | C43: 150 | D43: 150 | E43: 150 | F43: 150 | G43: 150
B45: Mesna (p.o.) | C45: =PMSID_4246_1_A_D -> 558.5986482 | D45: =PMSID_4246_2_A_D -> 0 | E45: =PMSID_4246_3_A_D -> 0 | F45: =PMSID_4246_4_A_D -> 0 | G45: =PMSID_4246_5_A_D -> 0
B46: % Dosis | C46: 1 | D46: 0 | E46: 0 | F46: 0 | G46: 0
B47: normale Dosierung | C47: 300 | D47: 300 | E47: 300 | F47: 300 | G47: 300
B49: Mesna (p.o.) | C49: =PMSID_4247_1_A_D -> 558.5986482 | D49: =PMSID_4247_2_A_D -> 0 | E49: =PMSID_4247_3_A_D -> 0 | F49: =PMSID_4247_4_A_D -> 0 | G49: =PMSID_4247_5_A_D -> 0
B50: % Dosis | C50: 1 | D50: 0 | E50: 0 | F50: 0 | G50: 0
B51: normale Dosierung | C51: 300 | D51: 300 | E51: 300 | F51: 300 | G51: 300
B53: Medikamentöse Tumortherapie: R-CHOP (RITU + CHOP d1)
B54: Prednisolon (p.o., 1-0-0-0) | C54: =PMSID_4240_1_A_D -> 100 | D54: =PMSID_4240_2_A_D -> 100 | E54: =PMSID_4240_3_A_D -> 100 | F54: =PMSID_4240_4_A_D -> 100 | G54: =PMSID_4240_5_A_D -> 100
B55: % Dosis | C55: 1 | D55: 1 | E55: 1 | F55: 1 | G55: 1
B56: normale Dosierung | C56: 100 | D56: 100 | E56: 100 | F56: 100 | G56: 100
B58: Rituximab (i.v.) | C58: =PMSID_4236_1_A_D -> 698.2483102 | D58: =PMSID_4236_2_A_D -> 0 | E58: =PMSID_4236_3_A_D -> 0 | F58: =PMSID_4236_4_A_D -> 0 | G58: =PMSID_4236_5_A_D -> 0
B59: % Dosis | C59: 1 | D59: 0 | E59: 0 | F59: 0 | G59: 0
B60: normale Dosierung | C60: 375 | D60: 375 | E60: 375 | F60: 375 | G60: 375
B62: Cyclophosphamid (i.v.) | C62: =PMSID_4237_1_A_D -> 1396.49662 | D62: =PMSID_4237_2_A_D -> 0 | E62: =PMSID_4237_3_A_D -> 0 | F62: =PMSID_4237_4_A_D -> 0 | G62: =PMSID_4237_5_A_D -> 0
B63: % Dosis | C63: 1 | D63: 0 | E63: 0 | F63: 0 | G63: 0
B64: normale Dosierung | C64: 750 | D64: 750 | E64: 750 | F64: 750 | G64: 750
B66: Doxorubicin (i.v.) | C66: =PMSID_4238_1_A_D -> 93.0997747 | D66: =PMSID_4238_2_A_D -> 0 | E66: =PMSID_4238_3_A_D -> 0 | F66: =PMSID_4238_4_A_D -> 0 | G66: =PMSID_4238_5_A_D -> 0
B67: % Dosis | C67: 1 | D67: 0 | E67: 0 | F67: 0 | G67: 0
B68: normale Dosierung | C68: 50 | D68: 50 | E68: 50 | F68: 50 | G68: 50
B70: Vincristin (i.v.) | C70: =PMSID_4239_1_A_D -> 2 | D70: =PMSID_4239_2_A_D -> 0 | E70: =PMSID_4239_3_A_D -> 0 | F70: =PMSID_4239_4_A_D -> 0 | G70: =PMSID_4239_5_A_D -> 0
B71: % Dosis | C71: 1 | D71: 0 | E71: 0 | F71: 0 | G71: 0
B72: normale Dosierung | C72: 2 | D72: 2 | E72: 2 | F72: 2 | G72: 2
B74: Flüssigkeitszufuhr: Hydrierung nach Vincristin
B75: Jonosteril (i.v.) | C75: =PMSID_4248_1_A_D -> 250 | D75: =PMSID_4248_2_A_D -> 0 | E75: =PMSID_4248_3_A_D -> 0 | F75: =PMSID_4248_4_A_D -> 0 | G75: =PMSID_4248_5_A_D -> 0
B76: % Dosis | C76: 1 | D76: 0 | E76: 0 | F76: 0 | G76: 0
B77: normale Dosierung | C77: 250 | D77: 250 | E77: 250 | F77: 250 | G77: 250
B79: Hämatopoetische Wachstumsfaktoren: FN-Risiko über 20%, G-CSF langwirksam, pegyliert
B80: Pegfilgrastim (s.c.) | C80: =PMSID_4249_1_A_D -> 0 | D80: =PMSID_4249_2_A_D -> 6 | E80: =PMSID_4249_3_A_D -> 0 | F80: =PMSID_4249_4_A_D -> 0 | G80: =PMSID_4249_5_A_D -> 0
B81: % Dosis | C81: 0 | D81: 1 | E81: 0 | F81: 0 | G81: 0
B82: normale Dosierung | C82: 6 | D82: 6 | E82: 6 | F82: 6 | G82: 6
B84: Infektionsprophylaxe: Infektionsprophylaxe oral, lymphatische Neoplasien
B85: Cotrimoxazol (p.o., 1-0-0-0) | C85: =PMSID_4251_1_A_D -> 960 | D85: =PMSID_4251_2_A_D -> 0 | E85: =PMSID_4251_3_A_D -> 960 | F85: =PMSID_4251_4_A_D -> 0 | G85: =PMSID_4251_5_A_D -> 960
B86: % Dosis | C86: 1 | D86: 0 | E86: 1 | F86: 0 | G86: 1
B87: normale Dosierung | C87: 960 | D87: 960 | E87: 960 | F87: 960 | G87: 960
B89: Amphotericin B (p.o., 1-1-1-1) | C89: =PMSID_4252_1_A_D -> 100 | D89: =PMSID_4252_2_A_D -> 100 | E89: =PMSID_4252_3_A_D -> 100 | F89: =PMSID_4252_4_A_D -> 100 | G89: =PMSID_4252_5_A_D -> 100
B90: % Dosis | C90: 1 | D90: 1 | E90: 1 | F90: 1 | G90: 1
B91: normale Dosierung | C91: 100 | D91: 100 | E91: 100 | F91: 100 | G91: 100
B93: Sonstige Therapie:
B94: [Substanznamen eingeben] | C94: =PMSID_1_1_A_D -> 0 | D94: =PMSID_1_2_A_D -> 0 | E94: =PMSID_1_3_A_D -> 0 | F94: =PMSID_1_4_A_D -> 0 | G94: =PMSID_1_5_A_D -> 0
B95: p.o. | C95: 0 | D95: 0 | E95: 0 | F95: 0 | G95: 0
B96: mg | C96: 0 | D96: 0 | E96: 0 | F96: 0 | G96: 0
B98: [Substanznamen eingeben] | C98: =PMSID_2_1_A_D -> 0 | D98: =PMSID_2_2_A_D -> 0 | E98: =PMSID_2_3_A_D -> 0 | F98: =PMSID_2_4_A_D -> 0 | G98: =PMSID_2_5_A_D -> 0
B99: p.o. | C99: 0 | D99: 0 | E99: 0 | F99: 0 | G99: 0
B100: mg | C100: 0 | D100: 0 | E100: 0 | F100: 0 | G100: 0
B102: [Substanznamen eingeben] | C102: =PMSID_3_1_A_D -> 0 | D102: =PMSID_3_2_A_D -> 0 | E102: =PMSID_3_3_A_D -> 0 | F102: =PMSID_3_4_A_D -> 0 | G102: =PMSID_3_5_A_D -> 0
B103: p.o. | C103: 0 | D103: 0 | E103: 0 | F103: 0 | G103: 0
B104: mg | C104: 0 | D104: 0 | E104: 0 | F104: 0 | G104: 0
B106: [Substanznamen eingeben] | C106: =PMSID_4_1_A_D -> 0 | D106: =PMSID_4_2_A_D -> 0 | E106: =PMSID_4_3_A_D -> 0 | F106: =PMSID_4_4_A_D -> 0 | G106: =PMSID_4_5_A_D -> 0
B107: p.o. | C107: 0 | D107: 0 | E107: 0 | F107: 0 | G107: 0
B108: mg | C108: 0 | D108: 0 | E108: 0 | F108: 0 | G108: 0
B110: Kontrollen
B111: Tag -1: Echokardiographie, EKG, Rö Thorax
B112: Tag -1: Hepatitis B (HBV) Test: HBsAg und anti-HBc
B113: Tag -1: IgG
B114: Tag 1: GOT, GPT, GGT, Bilirubin, AP, Cholinesterase
B115: Tag 1: Kreatinin, kalkulierte GFR
B116: Tag 1: Urin-Status
B117: Tag 1: Na+, K+, Ca2+, Mg2+
B118: Blutbild: an Tag 1 und in Folge wöchentlich

Sheet Zyklusdiagramm
A1: Entwurf | B1: =Protokollname -> R-CHOP 14 - Rituximab 375 / Cyclophosphamid 750 / Doxorubicin 50 / Vincristin 2 / Prednisolon 100, diffus großzelliges B-Non-Hodgkin-Lymphom, Zyklus 1-6 (PID=112 V1.1) | AM1: ="Zyklusdiagramm Z" & Zyklusnummer -> Zyklusdiagramm Z1
B2: =IF(PatientName="","",PatientName) -> Doe, John | N2: geb. | R2: =PatientGeboren -> 1967-01-01 | V2: Alter | AA2: =DATEDIF(PatientGeboren,NOW(),"y")&"J "&MOD(DATEDIF(PatientGeboren,NOW(),"m"),12)&"M" -> 54J 8M | AE2: Geschlecht | AJ2: =PatientGeschlecht -> m
B3: Diagnose | C3: =IF(Diagnose="","",Diagnose) -> diffus großzelliges NHL | N3: Stadium | R3: =IF(Stadium="","",Stadium) -> IIB | V3: Therapiemodus | AA3: =IF(Therapiemodus<>"",Therapiemodus,"") -> Erstlinie | AE3: Pat-ID | AJ3: =IF(PatientID="","",PatientID) -> 5
B4: Größe | C4: =GroesseCM -> 170 | F4: Gewicht | J4: =KG -> 75 | N4: KOF | R4: =KOF -> 1.861995494 | V4: Infusionsarm | AA4: =PatientInfusionsarm -> rechts | AE4: Auftragsnr. | AJ4: =IF(Auftragsnummer="","",Auftragsnummer) -> 5
B5: Serum-Kreatinin | C5: =PatientSerumKreatinin -> 0.8 | F5: ="GFR " & shortGFR(sGFR) -> GFR NM | J5: =PatientKreatininClearance -> 102.3168019 | N5: Datum | R5: =PatientSerumKreatininDatum ->  | V5: Port | AA5: =PatientPort -> rechts
B6: Zyklus Nr | C6: =Zyklusnummer -> 1 | F6: von | J6: =EmpfZyklen -> 6 | N6: Intervalltage | R6: =IntervallTage -> 14 | V6: erster Tag | AA6: =Therapiebeginn -> 2021-09-06 | AE6: nächster Zyklus | AJ6: =nächsterZyklus -> 2021-09-20
B7: Dateipfad | C7: =Dateipfad -> C:\Users\wicken\Desktop\opti-demo-excel\Demo_R-CHOP 14 (RITU375_CYCL750_DOXO50_VNCR2_PRED100), DLBCL, Z1-6_PID112_V1_1.xlsm
C10: ="Woche " & IF(C12<0,C12/7,I12/7) -> Woche 1 | J10: ="Woche " & IF(J12<0,J12/7,P12/7) -> Woche 2
C11: =PDateOV_1 -> 2021-09-06 | D11: =PDateOV_2 -> 2021-09-07 | E11: =PDateOV_3 -> 2021-09-08 | F11: =PDateOV_4 -> 2021-09-09 | G11: =PDateOV_5 -> 2021-09-10 | H11: =G11+1 -> 2021-09-11 | I11: 2021-09-12 | J11: 2021-09-13 | K11: 2021-09-14 | L11: 2021-09-15 | M11: 2021-09-16 | N11: 2021-09-17 | O11: 2021-09-18 | P11: 2021-09-19
B12: Flüssigkeitszufuhr | C12: 1 | D12: =IF(C12=-1,1,C12+1) -> 2 | E12: =IF(D12=-1,1,D12+1) -> 3 | F12: 4 | G12: 5 | H12: 6 | I12: 7 | J12: 8 | K12: 9 | L12: 10 | M12: 11 | N12: 12 | O12: 13 | P12: 14
B13: Jonosteril (i.v.)
B14: Allergieprophylaxe
B15: Paracetamol (p.o.)
B16: Dimetinden (i.v.)
B17: Antiemese
B18: Granisetron (i.v.)
B19: Supportive Therapie
B20: Mesna (i.v.)
B21: Mesna (p.o.)
B22: Mesna (p.o.)
B23: Medikamentöse Tumortherapie
B24: Prednisolon (p.o., 1-0-0-0)
B25: Rituximab (i.v.)
B26: Cyclophosphamid (i.v.)
B27: Doxorubicin (i.v.)
B28: Vincristin (i.v.)
B29: Flüssigkeitszufuhr
B30: Jonosteril (i.v.)
B31: Hämatopoetische Wachstumsfaktoren
B32: Pegfilgrastim (s.c.)
B33: Infektionsprophylaxe
B34: Cotrimoxazol (p.o., 1-0-0-0)
B35: Amphotericin B (p.o., 1-1-1-1)
B36: Sonstige Therapie
B37: [Substanznamen eingeben]
B38: [Substanznamen eingeben]
B39: [Substanznamen eingeben]
B40: [Substanznamen eingeben]
B43: Dauermedikation | C43: Achtung: In der Dauermedikation sind ggf. Medikamentabgaben enthalten, für die keine Tagesblätter existieren.
B44: Infektionsprophylaxe | C44: Infektionsprophylaxe oral, lymphatische Neoplasien
B45: Tagesdosen beachten | C45: Tag 1,3,5,8,10,12, 1-0-0-0, Cotrimoxazol 960 mg | T45: Dosismodifikation hier eintragen, falls kein Tagesblatt vorliegt.
B46: Tagesdosen beachten | C46: Tag 1-14, 1-1-1-1, Amphotericin B 100 mg | T46: Dosismodifikation hier eintragen, falls kein Tagesblatt vorliegt.
B51: Kontrollen
B52: Tag -1: Echokardiographie, EKG, Rö Thorax
B53: Tag -1: Hepatitis B (HBV) Test: HBsAg und anti-HBc
B54: Tag -1: IgG
B55: Tag 1: GOT, GPT, GGT, Bilirubin, AP, Cholinesterase
B56: Tag 1: Kreatinin, kalkulierte GFR
B57: Tag 1: Urin-Status
B58: Tag 1: Na+, K+, Ca2+, Mg2+
B59: Blutbild: an Tag 1 und in Folge wöchentlich
B61: Dosierungsbemerkungen
B62: Jonosteril | C62: oder vergleichbare isotone kristalloide Elektrolytlösung
B63: Granisetron | C63: oder anderer 5-HT3-Rezeptorantagonist.
B64: Prednisolon | C64: Mindestens 60 Minuten vor Rituximab an Tag 1 verabreichen.
B65: Rituximab | C65: Init. Infusionsgeschwindigkeit 50mg/h; sie kann alle 30min um 50mg/h auf max. 400mg/h gesteigert werden. Weitere Infusionen: init. Infusionsgeschwindigkeit 100mg/h, die alle 30min um 100mg/h bis max. 400mg/h gesteigert werden kann.
B66: Cotrimoxazol | C66: kontinuierliche Gabe 3 mal wöchentlich, weiter bis d14 des letzten Zyklus
B67: Amphotericin B | C67: 1 Pipette à 1 ml (100mg), weiter kontinuierliche Gabe bis d14 des letzten Zyklus

Sheet Tag 1
A1: Entwurf | B1: =Protokollname -> R-CHOP 14 - Rituximab 375 / Cyclophosphamid 750 / Doxorubicin 50 / Vincristin 2 / Prednisolon 100, diffus großzelliges B-Non-Hodgkin-Lymphom, Zyklus 1-6 (PID=112 V1.1) | L1: ="Z" & Zyklusnummer & "/d" & F9 -> Z1/d1
B2: =IF(PatientName="","",PatientName) -> Doe, John | G2: geb.: | H2: =PatientGeboren -> 1967-01-01 | I2: Alter | J2: =DATEDIF(PatientGeboren,NOW(),"y")&"J "&MOD(DATEDIF(PatientGeboren,NOW(),"m"),12)&"M" -> 54J 8M | K2: Geschlecht | L2: =PatientGeschlecht -> m
C3: Diagnose | D3: =IF(Diagnose="","-",Diagnose) -> diffus großzelliges NHL | G3: Stadium | H3: =IF(Stadium="","",Stadium) -> IIB | I3: Therapiemodus | J3: =IF(Therapiemodus<>"",Therapiemodus,"") -> Erstlinie | K3: Erstdiagnose | L3: =IF(ErstdiagnoseDatum,ErstdiagnoseDatum,"") -> 2021-09-06
C4: Größe | D4: =GroesseCM -> 170 | E4: Gewicht | F4: =KG -> 75 | G4: KOF | H4: =KG_1^0.425*GroesseCM_1^0.725/139.315 -> 1.861995494 | I4: Infusionsarm | J4: =PatientInfusionsarm -> rechts | K4: Pat-ID | L4: =IF(PatientID="","",PatientID) -> 5
C5: Serum-Kreatinin | D5: =PatientSerumKreatinin -> 0.8 | E5: Datum | F5: =PatientSerumKreatininDatum ->  | G5: ="GFR " & shortGFR(sGFR) -> GFR NM | H5: =fGFR(F4,D4,PatientAlter,PatientGeschlecht,D5) -> 102.3168019 | I5: Port | J5: =PatientPort -> rechts | K5: Auftragsnummer | L5: =IF(Auftragsnummer="","",Auftragsnummer) -> 5
C6: erster Tag | D6: =Therapiebeginn -> 2021-09-06 | E6: Anzahl Zyklen | F6: =EmpfZyklen -> 6 | G6: Intervalltage | H6: =IntervallTage -> 14 | I6: erster Zyklus | J6: =DatumErsterZyklus -> 2021-09-06 | K6: nächster Zyklus | L6: =nächsterZyklus -> 2021-09-20
C7: Dateipfad | D7: =Dateipfad -> C:\Users\wicken\Desktop\opti-demo-excel\Demo_R-CHOP 14 (RITU375_CYCL750_DOXO50_VNCR2_PRED100), DLBCL, Z1-6_PID112_V1_1.xlsm
C9: Therapiedatum | D9: =PDateOV_1 -> 2021-09-06 | E9: Zyklustag: | F9: 1 | G9: Zyklus: | H9: =Zyklusnummer -> 1 | I9: Uhrzeit: | J9: 00:00:00
B10: Appl. Art | C10: Medikament, Substanz | D10: Dosis, Einheit | E10: normale Dosierung | F10: % Anteil Normaldosis | G10: Trägerlsg. Volumen | I10: Ablauf | K10: Dauer | L10: Hdz. Arzt Uhrzeit
B11: Flüssigkeitszufuhr: Jonosteril | L11: Zugangsart: peripher venös
B12: i.v. | C12: Jonosteril | D12: =PMSID_4241_1_B_D*1*PMSID_4241_1_F_D -> 500 | E12: 500 | F12: 1 | G12: - | I12: 60 min vor Rituximab (d1) | K12: 60 min
B14: Allergieprophylaxe: Rituximab Allergieprophylaxe (Paracetamol, Dimetinden) | L14: Zugangsart: peripher venös
B15: p.o. | C15: Paracetamol | D15: =PMSID_4242_1_B_D*1*PMSID_4242_1_F_D -> 1000 | E15: 1000 | F15: 1 | G15: 50 ml | I15: 60 min vor Rituximab (d1) | K15: 0 min
B17: i.v. | C17: Dimetinden | D17: =PMSID_4243_1_B_D*1*PMSID_4243_1_F_D -> 4 | E17: 4 | F17: 1 | G17: NaCl 0,9%, 50 ml | I17: 30 min vor Rituximab (d1) | K17: 5 min
B19: Antiemese: Emetogenität moderat, GRAN i.v., ohne DEXA d1-3 | L19: Zugangsart: peripher venös
B20: i.v. | C20: Granisetron | D20: =PMSID_4244_1_B_D*1*PMSID_4244_1_F_D -> 1 | E20: 1 | F20: 1 | G20: NaCl 0,9%, 50 ml | I20: 15 min vor Rituximab (d1) | K20: 5 min
B22: Supportive Therapie: Mesna i.v., Stunde 0 (vor), p.o. 2h, 6 h nach Beginn Cyclophosphamid | L22: Zugangsart: peripher venös
B23: i.v. | C23: Mesna | D23: =PMSID_4245_1_B_D*KOF_1*PMSID_4245_1_F_D -> 279.2993241 | E23: 150 | F23: 1 | G23: - | I23: 1 min vor Cyclophosphamid (d1) | K23: 1 min
B25: p.o. | C25: Mesna | D25: =PMSID_4246_1_B_D*KOF_1*PMSID_4246_1_F_D -> 558.5986482 | E25: 300 | F25: 1 | G25: - | I25: 60 min nach Cyclophosphamid (d1) | K25: 0 min
B27: p.o. | C27: Mesna | D27: =PMSID_4247_1_B_D*KOF_1*PMSID_4247_1_F_D -> 558.5986482 | E27: 300 | F27: 1 | G27: - | I27: 5 h nach Cyclophosphamid (d1) | K27: 0 min
B29: Medikamentöse Tumortherapie: R-CHOP (RITU + CHOP d1) | L29: Zugangsart: zentral venös
B30: p.o. | C30: Prednisolon | D30: =PMSID_4240_1_B_D*1*PMSID_4240_1_F_D -> 100 | E30: 100 | F30: 1 | G30: - | I30: 1-0-0-0 | K30: 0 min
B32: i.v. | C32: Rituximab | D32: =PMSID_4236_1_B_D*KOF_1*PMSID_4236_1_F_D -> 698.2483102 | E32: 375 | F32: 1 | G32: NaCl 0,9%, 500 ml | I32: Reihenfolge | K32: 4 h
B34: i.v. | C34: Cyclophosphamid | D34: =PMSID_4237_1_B_D*KOF_1*PMSID_4237_1_F_D -> 1396.49662 | E34: 750 | F34: 1 | G34: NaCl 0,9%, 500 ml | I34: Reihenfolge | K34: 60 min
B36: i.v. | C36: Doxorubicin | D36: =PMSID_4238_1_B_D*KOF_1*PMSID_4238_1_F_D -> 93.0997747 | E36: 50 | F36: 1 | G36: Glucose 5%, 250 ml | I36: Reihenfolge | K36: 15 min
B38: i.v. | C38: Vincristin | D38: =PMSID_4239_1_B_D*1*PMSID_4239_1_F_D -> 2 | E38: 2 | F38: 1 | G38: NaCl 0,9%, 50 ml | I38: Reihenfolge | K38: 3 min
B40: Flüssigkeitszufuhr: Hydrierung nach Vincristin | L40: Zugangsart: peripher venös
B41: i.v. | C41: Jonosteril | D41: =PMSID_4248_1_B_D*1*PMSID_4248_1_F_D -> 250 | E41: 250 | F41: 1 | G41: - | I41: 0 min nach Vincristin (d1) | K41: 15 min
B43: Hämatopoetische Wachstumsfaktoren: FN-Risiko über 20%, G-CSF langwirksam, pegyliert | L43: Zugangsart: - entfällt -
B44: s.c. | C44: Pegfilgrastim | D44: =PMSID_4249_1_B_D*1*PMSID_4249_1_F_D -> 0 | E44: 6 | F44: 0 | G44: - | I44: 24 h nach Vincristin (d1) | K44: 0 min
B46: Infektionsprophylaxe: Infektionsprophylaxe oral, lymphatische Neoplasien | L46: Zugangsart: - entfällt -
B47: p.o. | C47: Cotrimoxazol | D47: =PMSID_4251_1_B_D*1*PMSID_4251_1_F_D -> 960 | E47: 960 | F47: 1 | G47: - | I47: 1-0-0-0 | K47: 0 min
B49: p.o. | C49: Amphotericin B | D49: =PMSID_4252_1_B_D*1*PMSID_4252_1_F_D -> 100 | E49: 100 | F49: 1 | G49: - | I49: 1-1-1-1 | K49: 0 min
B51: Sonstige Therapie: | L51: Zugangsart: Keine Angabe
B52: p.o. | D52: =PMSID_1_1_B_D*PMSID_1_1_F_D -> 0 | E52: 0 | F52: 0 | G52: - | K52: 0 min
B54: p.o. | D54: =PMSID_2_1_B_D*PMSID_2_1_F_D -> 0 | E54: 0 | F54: 0 | G54: - | K54: 0 min
B56: p.o. | D56: =PMSID_3_1_B_D*PMSID_3_1_F_D -> 0 | E56: 0 | F56: 0 | G56: - | K56: 0 min
B58: p.o. | D58: =PMSID_4_1_B_D*PMSID_4_1_F_D -> 0 | E58: 0 | F58: 0 | G58: - | K58: 0 min

Sheet Tag 2
A1: Entwurf | B1: =Protokollname -> R-CHOP 14 - Rituximab 375 / Cyclophosphamid 750 / Doxorubicin 50 / Vincristin 2 / Prednisolon 100, diffus großzelliges B-Non-Hodgkin-Lymphom, Zyklus 1-6 (PID=112 V1.1) | L1: ="Z" & Zyklusnummer & "/d" & F9 -> Z1/d2
B2: =IF(PatientName="","",PatientName) -> Doe, John | G2: geb.: | H2: =PatientGeboren -> 1967-01-01 | I2: Alter | J2: =DATEDIF(PatientGeboren,NOW(),"y")&"J "&MOD(DATEDIF(PatientGeboren,NOW(),"m"),12)&"M" -> 54J 8M | K2: Geschlecht | L2: =PatientGeschlecht -> m
C3: Diagnose | D3: =IF(Diagnose="","-",Diagnose) -> diffus großzelliges NHL | G3: Stadium | H3: =IF(Stadium="","",Stadium) -> IIB | I3: Therapiemodus | J3: =IF(Therapiemodus<>"",Therapiemodus,"") -> Erstlinie | K3: Erstdiagnose | L3: =IF(ErstdiagnoseDatum,ErstdiagnoseDatum,"") -> 2021-09-06
C4: Größe | D4: =GroesseCM_1 -> 170 | E4: Gewicht | F4: =KG_1 -> 75 | G4: KOF | H4: =KG_2^0.425*GroesseCM_2^0.725/139.315 -> 1.861995494 | I4: Infusionsarm | J4: =PatientInfusionsarm -> rechts | K4: Pat-ID | L4: =IF(PatientID="","",PatientID) -> 5
C5: Serum-Kreatinin | D5: =SerumKreatinin_1 -> 0.8 | E5: Datum | F5: =SerumKreatininDatum_1 ->  | G5: ="GFR " & shortGFR(sGFR) -> GFR NM | H5: =fGFR(F4,D4,PatientAlter,PatientGeschlecht,D5) -> 102.3168019 | I5: Port | J5: =PatientPort -> rechts | K5: Auftragsnummer | L5: =IF(Auftragsnummer="","",Auftragsnummer) -> 5
C6: erster Tag | D6: =Therapiebeginn -> 2021-09-06 | E6: Anzahl Zyklen | F6: =EmpfZyklen -> 6 | G6: Intervalltage | H6: =IntervallTage -> 14 | I6: erster Zyklus | J6: =DatumErsterZyklus -> 2021-09-06 | K6: nächster Zyklus | L6: =nächsterZyklus -> 2021-09-20
C7: Dateipfad | D7: =Dateipfad -> C:\Users\wicken\Desktop\opti-demo-excel\Demo_R-CHOP 14 (RITU375_CYCL750_DOXO50_VNCR2_PRED100), DLBCL, Z1-6_PID112_V1_1.xlsm
C9: Therapiedatum | D9: =PDateOV_2 -> 2021-09-07 | E9: Zyklustag: | F9: 2 | G9: Zyklus: | H9: =Zyklusnummer -> 1 | I9: Uhrzeit: | J9: 00:00:00
B10: Appl. Art | C10: Medikament, Substanz | D10: Dosis, Einheit | E10: normale Dosierung | F10: % Anteil Normaldosis | G10: Trägerlsg. Volumen | I10: Ablauf | K10: Dauer | L10: Hdz. Arzt Uhrzeit
B11: Flüssigkeitszufuhr: Jonosteril | L11: Zugangsart: peripher venös
B12: i.v. | C12: Jonosteril | D12: =PMSID_4241_2_B_D*1*PMSID_4241_2_F_D -> 0 | E12: 500 | F12: 0 | G12: - | I12: 60 min vor Rituximab (d1) | K12: 60 min
B14: Allergieprophylaxe: Rituximab Allergieprophylaxe (Paracetamol, Dimetinden) | L14: Zugangsart: peripher venös
B15: p.o. | C15: Paracetamol | D15: =PMSID_4242_2_B_D*1*PMSID_4242_2_F_D -> 0 | E15: 1000 | F15: 0 | G15: 50 ml | I15: 60 min vor Rituximab (d1) | K15: 0 min
B17: i.v. | C17: Dimetinden | D17: =PMSID_4243_2_B_D*1*PMSID_4243_2_F_D -> 0 | E17: 4 | F17: 0 | G17: NaCl 0,9%, 50 ml | I17: 30 min vor Rituximab (d1) | K17: 5 min
B19: Antiemese: Emetogenität moderat, GRAN i.v., ohne DEXA d1-3 | L19: Zugangsart: peripher venös
B20: i.v. | C20: Granisetron | D20: =PMSID_4244_2_B_D*1*PMSID_4244_2_F_D -> 0 | E20: 1 | F20: 0 | G20: NaCl 0,9%, 50 ml | I20: 15 min vor Rituximab (d1) | K20: 5 min
B22: Supportive Therapie: Mesna i.v., Stunde 0 (vor), p.o. 2h, 6 h nach Beginn Cyclophosphamid | L22: Zugangsart: peripher venös
B23: i.v. | C23: Mesna | D23: =PMSID_4245_2_B_D*KOF_2*PMSID_4245_2_F_D -> 0 | E23: 150 | F23: 0 | G23: - | I23: 1 min vor Cyclophosphamid (d1) | K23: 1 min
B25: p.o. | C25: Mesna | D25: =PMSID_4246_2_B_D*KOF_2*PMSID_4246_2_F_D -> 0 | E25: 300 | F25: 0 | G25: - | I25: 60 min nach Cyclophosphamid (d1) | K25: 0 min
B27: p.o. | C27: Mesna | D27: =PMSID_4247_2_B_D*KOF_2*PMSID_4247_2_F_D -> 0 | E27: 300 | F27: 0 | G27: - | I27: 5 h nach Cyclophosphamid (d1) | K27: 0 min
B29: Medikamentöse Tumortherapie: R-CHOP (RITU + CHOP d1) | L29: Zugangsart: zentral venös
B30: p.o. | C30: Prednisolon | D30: =PMSID_4240_2_B_D*1*PMSID_4240_2_F_D -> 100 | E30: 100 | F30: 1 | G30: - | I30: 1-0-0-0 | K30: 0 min
B32: i.v. | C32: Rituximab | D32: =PMSID_4236_2_B_D*KOF_2*PMSID_4236_2_F_D -> 0 | E32: 375 | F32: 0 | G32: NaCl 0,9%, 500 ml | I32: Reihenfolge | K32: 4 h
B34: i.v. | C34: Cyclophosphamid | D34: =PMSID_4237_2_B_D*KOF_2*PMSID_4237_2_F_D -> 0 | E34: 750 | F34: 0 | G34: NaCl 0,9%, 500 ml | I34: Reihenfolge | K34: 60 min
B36: i.v. | C36: Doxorubicin | D36: =PMSID_4238_2_B_D*KOF_2*PMSID_4238_2_F_D -> 0 | E36: 50 | F36: 0 | G36: Glucose 5%, 250 ml | I36: Reihenfolge | K36: 15 min
B38: i.v. | C38: Vincristin | D38: =PMSID_4239_2_B_D*1*PMSID_4239_2_F_D -> 0 | E38: 2 | F38: 0 | G38: NaCl 0,9%, 50 ml | I38: Reihenfolge | K38: 3 min
B40: Flüssigkeitszufuhr: Hydrierung nach Vincristin | L40: Zugangsart: peripher venös
B41: i.v. | C41: Jonosteril | D41: =PMSID_4248_2_B_D*1*PMSID_4248_2_F_D -> 0 | E41: 250 | F41: 0 | G41: - | I41: 0 min nach Vincristin (d1) | K41: 15 min
B43: Hämatopoetische Wachstumsfaktoren: FN-Risiko über 20%, G-CSF langwirksam, pegyliert | L43: Zugangsart: - entfällt -
B44: s.c. | C44: Pegfilgrastim | D44: =PMSID_4249_2_B_D*1*PMSID_4249_2_F_D -> 6 | E44: 6 | F44: 1 | G44: - | I44: 24 h nach Vincristin (d1) | K44: 0 min
B46: Infektionsprophylaxe: Infektionsprophylaxe oral, lymphatische Neoplasien | L46: Zugangsart: - entfällt -
B47: p.o. | C47: Cotrimoxazol | D47: =PMSID_4251_2_B_D*1*PMSID_4251_2_F_D -> 0 | E47: 960 | F47: 0 | G47: - | I47: 1-0-0-0 | K47: 0 min
B49: p.o. | C49: Amphotericin B | D49: =PMSID_4252_2_B_D*1*PMSID_4252_2_F_D -> 100 | E49: 100 | F49: 1 | G49: - | I49: 1-1-1-1 | K49: 0 min
B51: Sonstige Therapie: | L51: Zugangsart: Keine Angabe
B52: p.o. | D52: =PMSID_1_2_B_D*PMSID_1_2_F_D -> 0 | E52: 0 | F52: 0 | G52: - | K52: 0 min
B54: p.o. | D54: =PMSID_2_2_B_D*PMSID_2_2_F_D -> 0 | E54: 0 | F54: 0 | G54: - | K54: 0 min
B56: p.o. | D56: =PMSID_3_2_B_D*PMSID_3_2_F_D -> 0 | E56: 0 | F56: 0 | G56: - | K56: 0 min
B58: p.o. | D58: =PMSID_4_2_B_D*PMSID_4_2_F_D -> 0 | E58: 0 | F58: 0 | G58: - | K58: 0 min

Sheet Tag 3
A1: Entwurf | B1: =Protokollname -> R-CHOP 14 - Rituximab 375 / Cyclophosphamid 750 / Doxorubicin 50 / Vincristin 2 / Prednisolon 100, diffus großzelliges B-Non-Hodgkin-Lymphom, Zyklus 1-6 (PID=112 V1.1) | L1: ="Z" & Zyklusnummer & "/d" & F9 -> Z1/d3
B2: =IF(PatientName="","",PatientName) -> Doe, John | G2: geb.: | H2: =PatientGeboren -> 1967-01-01 | I2: Alter | J2: =DATEDIF(PatientGeboren,NOW(),"y")&"J "&MOD(DATEDIF(PatientGeboren,NOW(),"m"),12)&"M" -> 54J 8M | K2: Geschlecht | L2: =PatientGeschlecht -> m
C3: Diagnose | D3: =IF(Diagnose="","-",Diagnose) -> diffus großzelliges NHL | G3: Stadium | H3: =IF(Stadium="","",Stadium) -> IIB | I3: Therapiemodus | J3: =IF(Therapiemodus<>"",Therapiemodus,"") -> Erstlinie | K3: Erstdiagnose | L3: =IF(ErstdiagnoseDatum,ErstdiagnoseDatum,"") -> 2021-09-06
C4: Größe | D4: =GroesseCM_2 -> 170 | E4: Gewicht | F4: =KG_2 -> 75 | G4: KOF | H4: =KG_3^0.425*GroesseCM_3^0.725/139.315 -> 1.861995494 | I4: Infusionsarm | J4: =PatientInfusionsarm -> rechts | K4: Pat-ID | L4: =IF(PatientID="","",PatientID) -> 5
C5: Serum-Kreatinin | D5: =SerumKreatinin_2 -> 0.8 | E5: Datum | F5: =SerumKreatininDatum_2 ->  | G5: ="GFR " & shortGFR(sGFR) -> GFR NM | H5: =fGFR(F4,D4,PatientAlter,PatientGeschlecht,D5) -> 102.3168019 | I5: Port | J5: =PatientPort -> rechts | K5: Auftragsnummer | L5: =IF(Auftragsnummer="","",Auftragsnummer) -> 5
C6: erster Tag | D6: =Therapiebeginn -> 2021-09-06 | E6: Anzahl Zyklen | F6: =EmpfZyklen -> 6 | G6: Intervalltage | H6: =IntervallTage -> 14 | I6: erster Zyklus | J6: =DatumErsterZyklus -> 2021-09-06 | K6: nächster Zyklus | L6: =nächsterZyklus -> 2021-09-20
C7: Dateipfad | D7: =Dateipfad -> C:\Users\wicken\Desktop\opti-demo-excel\Demo_R-CHOP 14 (RITU375_CYCL750_DOXO50_VNCR2_PRED100), DLBCL, Z1-6_PID112_V1_1.xlsm
C9: Therapiedatum | D9: =PDateOV_3 -> 2021-09-08 | E9: Zyklustag: | F9: 3 | G9: Zyklus: | H9: =Zyklusnummer -> 1 | I9: Uhrzeit: | J9: 00:00:00
B10: Appl. Art | C10: Medikament, Substanz | D10: Dosis, Einheit | E10: normale Dosierung | F10: % Anteil Normaldosis | G10: Trägerlsg. Volumen | I10: Ablauf | K10: Dauer | L10: Hdz. Arzt Uhrzeit
B11: Flüssigkeitszufuhr: Jonosteril | L11: Zugangsart: peripher venös
B12: i.v. | C12: Jonosteril | D12: =PMSID_4241_3_B_D*1*PMSID_4241_3_F_D -> 0 | E12: 500 | F12: 0 | G12: - | I12: 60 min vor Rituximab (d1) | K12: 60 min
B14: Allergieprophylaxe: Rituximab Allergieprophylaxe (Paracetamol, Dimetinden) | L14: Zugangsart: peripher venös
B15: p.o. | C15: Paracetamol | D15: =PMSID_4242_3_B_D*1*PMSID_4242_3_F_D -> 0 | E15: 1000 | F15: 0 | G15: 50 ml | I15: 60 min vor Rituximab (d1) | K15: 0 min
B17: i.v. | C17: Dimetinden | D17: =PMSID_4243_3_B_D*1*PMSID_4243_3_F_D -> 0 | E17: 4 | F17: 0 | G17: NaCl 0,9%, 50 ml | I17: 30 min vor Rituximab (d1) | K17: 5 min
B19: Antiemese: Emetogenität moderat, GRAN i.v., ohne DEXA d1-3 | L19: Zugangsart: peripher venös
B20: i.v. | C20: Granisetron | D20: =PMSID_4244_3_B_D*1*PMSID_4244_3_F_D -> 0 | E20: 1 | F20: 0 | G20: NaCl 0,9%, 50 ml | I20: 15 min vor Rituximab (d1) | K20: 5 min
B22: Supportive Therapie: Mesna i.v., Stunde 0 (vor), p.o. 2h, 6 h nach Beginn Cyclophosphamid | L22: Zugangsart: peripher venös
B23: i.v. | C23: Mesna | D23: =PMSID_4245_3_B_D*KOF_3*PMSID_4245_3_F_D -> 0 | E23: 150 | F23: 0 | G23: - | I23: 1 min vor Cyclophosphamid (d1) | K23: 1 min
B25: p.o. | C25: Mesna | D25: =PMSID_4246_3_B_D*KOF_3*PMSID_4246_3_F_D -> 0 | E25: 300 | F25: 0 | G25: - | I25: 60 min nach Cyclophosphamid (d1) | K25: 0 min
B27: p.o. | C27: Mesna | D27: =PMSID_4247_3_B_D*KOF_3*PMSID_4247_3_F_D -> 0 | E27: 300 | F27: 0 | G27: - | I27: 5 h nach Cyclophosphamid (d1) | K27: 0 min
B29: Medikamentöse Tumortherapie: R-CHOP (RITU + CHOP d1) | L29: Zugangsart: zentral venös
B30: p.o. | C30: Prednisolon | D30: =PMSID_4240_3_B_D*1*PMSID_4240_3_F_D -> 100 | E30: 100 | F30: 1 | G30: - | I30: 1-0-0-0 | K30: 0 min
B32: i.v. | C32: Rituximab | D32: =PMSID_4236_3_B_D*KOF_3*PMSID_4236_3_F_D -> 0 | E32: 375 | F32: 0 | G32: NaCl 0,9%, 500 ml | I32: Reihenfolge | K32: 4 h
B34: i.v. | C34: Cyclophosphamid | D34: =PMSID_4237_3_B_D*KOF_3*PMSID_4237_3_F_D -> 0 | E34: 750 | F34: 0 | G34: NaCl 0,9%, 500 ml | I34: Reihenfolge | K34: 60 min
B36: i.v. | C36: Doxorubicin | D36: =PMSID_4238_3_B_D*KOF_3*PMSID_4238_3_F_D -> 0 | E36: 50 | F36: 0 | G36: Glucose 5%, 250 ml | I36: Reihenfolge | K36: 15 min
B38: i.v. | C38: Vincristin | D38: =PMSID_4239_3_B_D*1*PMSID_4239_3_F_D -> 0 | E38: 2 | F38: 0 | G38: NaCl 0,9%, 50 ml | I38: Reihenfolge | K38: 3 min
B40: Flüssigkeitszufuhr: Hydrierung nach Vincristin | L40: Zugangsart: peripher venös
B41: i.v. | C41: Jonosteril | D41: =PMSID_4248_3_B_D*1*PMSID_4248_3_F_D -> 0 | E41: 250 | F41: 0 | G41: - | I41: 0 min nach Vincristin (d1) | K41: 15 min
B43: Hämatopoetische Wachstumsfaktoren: FN-Risiko über 20%, G-CSF langwirksam, pegyliert | L43: Zugangsart: - entfällt -
B44: s.c. | C44: Pegfilgrastim | D44: =PMSID_4249_3_B_D*1*PMSID_4249_3_F_D -> 0 | E44: 6 | F44: 0 | G44: - | I44: 24 h nach Vincristin (d1) | K44: 0 min
B46: Infektionsprophylaxe: Infektionsprophylaxe oral, lymphatische Neoplasien | L46: Zugangsart: - entfällt -
B47: p.o. | C47: Cotrimoxazol | D47: =PMSID_4251_3_B_D*1*PMSID_4251_3_F_D -> 960 | E47: 960 | F47: 1 | G47: - | I47: 1-0-0-0 | K47: 0 min
B49: p.o. | C49: Amphotericin B | D49: =PMSID_4252_3_B_D*1*PMSID_4252_3_F_D -> 100 | E49: 100 | F49: 1 | G49: - | I49: 1-1-1-1 | K49: 0 min
B51: Sonstige Therapie: | L51: Zugangsart: Keine Angabe
B52: p.o. | D52: =PMSID_1_3_B_D*PMSID_1_3_F_D -> 0 | E52: 0 | F52: 0 | G52: - | K52: 0 min
B54: p.o. | D54: =PMSID_2_3_B_D*PMSID_2_3_F_D -> 0 | E54: 0 | F54: 0 | G54: - | K54: 0 min
B56: p.o. | D56: =PMSID_3_3_B_D*PMSID_3_3_F_D -> 0 | E56: 0 | F56: 0 | G56: - | K56: 0 min
B58: p.o. | D58: =PMSID_4_3_B_D*PMSID_4_3_F_D -> 0 | E58: 0 | F58: 0 | G58: - | K58: 0 min

Sheet Tag 4
A1: Entwurf | B1: =Protokollname -> R-CHOP 14 - Rituximab 375 / Cyclophosphamid 750 / Doxorubicin 50 / Vincristin 2 / Prednisolon 100, diffus großzelliges B-Non-Hodgkin-Lymphom, Zyklus 1-6 (PID=112 V1.1) | L1: ="Z" & Zyklusnummer & "/d" & F9 -> Z1/d4
B2: =IF(PatientName="","",PatientName) -> Doe, John | G2: geb.: | H2: =PatientGeboren -> 1967-01-01 | I2: Alter | J2: =DATEDIF(PatientGeboren,NOW(),"y")&"J "&MOD(DATEDIF(PatientGeboren,NOW(),"m"),12)&"M" -> 54J 8M | K2: Geschlecht | L2: =PatientGeschlecht -> m
C3: Diagnose | D3: =IF(Diagnose="","-",Diagnose) -> diffus großzelliges NHL | G3: Stadium | H3: =IF(Stadium="","",Stadium) -> IIB | I3: Therapiemodus | J3: =IF(Therapiemodus<>"",Therapiemodus,"") -> Erstlinie | K3: Erstdiagnose | L3: =IF(ErstdiagnoseDatum,ErstdiagnoseDatum,"") -> 2021-09-06
C4: Größe | D4: =GroesseCM_3 -> 170 | E4: Gewicht | F4: =KG_3 -> 75 | G4: KOF | H4: =KG_4^0.425*GroesseCM_4^0.725/139.315 -> 1.861995494 | I4: Infusionsarm | J4: =PatientInfusionsarm -> rechts | K4: Pat-ID | L4: =IF(PatientID="","",PatientID) -> 5
C5: Serum-Kreatinin | D5: =SerumKreatinin_3 -> 0.8 | E5: Datum | F5: =SerumKreatininDatum_3 ->  | G5: ="GFR " & shortGFR(sGFR) -> GFR NM | H5: =fGFR(F4,D4,PatientAlter,PatientGeschlecht,D5) -> 102.3168019 | I5: Port | J5: =PatientPort -> rechts | K5: Auftragsnummer | L5: =IF(Auftragsnummer="","",Auftragsnummer) -> 5
C6: erster Tag | D6: =Therapiebeginn -> 2021-09-06 | E6: Anzahl Zyklen | F6: =EmpfZyklen -> 6 | G6: Intervalltage | H6: =IntervallTage -> 14 | I6: erster Zyklus | J6: =DatumErsterZyklus -> 2021-09-06 | K6: nächster Zyklus | L6: =nächsterZyklus -> 2021-09-20
C7: Dateipfad | D7: =Dateipfad -> C:\Users\wicken\Desktop\opti-demo-excel\Demo_R-CHOP 14 (RITU375_CYCL750_DOXO50_VNCR2_PRED100), DLBCL, Z1-6_PID112_V1_1.xlsm
C9: Therapiedatum | D9: =PDateOV_4 -> 2021-09-09 | E9: Zyklustag: | F9: 4 | G9: Zyklus: | H9: =Zyklusnummer -> 1 | I9: Uhrzeit: | J9: 00:00:00
B10: Appl. Art | C10: Medikament, Substanz | D10: Dosis, Einheit | E10: normale Dosierung | F10: % Anteil Normaldosis | G10: Trägerlsg. Volumen | I10: Ablauf | K10: Dauer | L10: Hdz. Arzt Uhrzeit
B11: Flüssigkeitszufuhr: Jonosteril | L11: Zugangsart: peripher venös
B12: i.v. | C12: Jonosteril | D12: =PMSID_4241_4_B_D*1*PMSID_4241_4_F_D -> 0 | E12: 500 | F12: 0 | G12: - | I12: 60 min vor Rituximab (d1) | K12: 60 min
B14: Allergieprophylaxe: Rituximab Allergieprophylaxe (Paracetamol, Dimetinden) | L14: Zugangsart: peripher venös
B15: p.o. | C15: Paracetamol | D15: =PMSID_4242_4_B_D*1*PMSID_4242_4_F_D -> 0 | E15: 1000 | F15: 0 | G15: 50 ml | I15: 60 min vor Rituximab (d1) | K15: 0 min
B17: i.v. | C17: Dimetinden | D17: =PMSID_4243_4_B_D*1*PMSID_4243_4_F_D -> 0 | E17: 4 | F17: 0 | G17: NaCl 0,9%, 50 ml | I17: 30 min vor Rituximab (d1) | K17: 5 min
B19: Antiemese: Emetogenität moderat, GRAN i.v., ohne DEXA d1-3 | L19: Zugangsart: peripher venös
B20: i.v. | C20: Granisetron | D20: =PMSID_4244_4_B_D*1*PMSID_4244_4_F_D -> 0 | E20: 1 | F20: 0 | G20: NaCl 0,9%, 50 ml | I20: 15 min vor Rituximab (d1) | K20: 5 min
B22: Supportive Therapie: Mesna i.v., Stunde 0 (vor), p.o. 2h, 6 h nach Beginn Cyclophosphamid | L22: Zugangsart: peripher venös
B23: i.v. | C23: Mesna | D23: =PMSID_4245_4_B_D*KOF_4*PMSID_4245_4_F_D -> 0 | E23: 150 | F23: 0 | G23: - | I23: 1 min vor Cyclophosphamid (d1) | K23: 1 min
B25: p.o. | C25: Mesna | D25: =PMSID_4246_4_B_D*KOF_4*PMSID_4246_4_F_D -> 0 | E25: 300 | F25: 0 | G25: - | I25: 60 min nach Cyclophosphamid (d1) | K25: 0 min
B27: p.o. | C27: Mesna | D27: =PMSID_4247_4_B_D*KOF_4*PMSID_4247_4_F_D -> 0 | E27: 300 | F27: 0 | G27: - | I27: 5 h nach Cyclophosphamid (d1) | K27: 0 min
B29: Medikamentöse Tumortherapie: R-CHOP (RITU + CHOP d1) | L29: Zugangsart: zentral venös
B30: p.o. | C30: Prednisolon | D30: =PMSID_4240_4_B_D*1*PMSID_4240_4_F_D -> 100 | E30: 100 | F30: 1 | G30: - | I30: 1-0-0-0 | K30: 0 min
B32: i.v. | C32: Rituximab | D32: =PMSID_4236_4_B_D*KOF_4*PMSID_4236_4_F_D -> 0 | E32: 375 | F32: 0 | G32: NaCl 0,9%, 500 ml | I32: Reihenfolge | K32: 4 h
B34: i.v. | C34: Cyclophosphamid | D34: =PMSID_4237_4_B_D*KOF_4*PMSID_4237_4_F_D -> 0 | E34: 750 | F34: 0 | G34: NaCl 0,9%, 500 ml | I34: Reihenfolge | K34: 60 min
B36: i.v. | C36: Doxorubicin | D36: =PMSID_4238_4_B_D*KOF_4*PMSID_4238_4_F_D -> 0 | E36: 50 | F36: 0 | G36: Glucose 5%, 250 ml | I36: Reihenfolge | K36: 15 min
B38: i.v. | C38: Vincristin | D38: =PMSID_4239_4_B_D*1*PMSID_4239_4_F_D -> 0 | E38: 2 | F38: 0 | G38: NaCl 0,9%, 50 ml | I38: Reihenfolge | K38: 3 min
B40: Flüssigkeitszufuhr: Hydrierung nach Vincristin | L40: Zugangsart: peripher venös
B41: i.v. | C41: Jonosteril | D41: =PMSID_4248_4_B_D*1*PMSID_4248_4_F_D -> 0 | E41: 250 | F41: 0 | G41: - | I41: 0 min nach Vincristin (d1) | K41: 15 min
B43: Hämatopoetische Wachstumsfaktoren: FN-Risiko über 20%, G-CSF langwirksam, pegyliert | L43: Zugangsart: - entfällt -
B44: s.c. | C44: Pegfilgrastim | D44: =PMSID_4249_4_B_D*1*PMSID_4249_4_F_D -> 0 | E44: 6 | F44: 0 | G44: - | I44: 24 h nach Vincristin (d1) | K44: 0 min
B46: Infektionsprophylaxe: Infektionsprophylaxe oral, lymphatische Neoplasien | L46: Zugangsart: - entfällt -
B47: p.o. | C47: Cotrimoxazol | D47: =PMSID_4251_4_B_D*1*PMSID_4251_4_F_D -> 0 | E47: 960 | F47: 0 | G47: - | I47: 1-0-0-0 | K47: 0 min
B49: p.o. | C49: Amphotericin B | D49: =PMSID_4252_4_B_D*1*PMSID_4252_4_F_D -> 100 | E49: 100 | F49: 1 | G49: - | I49: 1-1-1-1 | K49: 0 min
B51: Sonstige Therapie: | L51: Zugangsart: Keine Angabe
B52: p.o. | D52: =PMSID_1_4_B_D*PMSID_1_4_F_D -> 0 | E52: 0 | F52: 0 | G52: - | K52: 0 min
B54: p.o. | D54: =PMSID_2_4_B_D*PMSID_2_4_F_D -> 0 | E54: 0 | F54: 0 | G54: - | K54: 0 min
B56: p.o. | D56: =PMSID_3_4_B_D*PMSID_3_4_F_D -> 0 | E56: 0 | F56: 0 | G56: - | K56: 0 min
B58: p.o. | D58: =PMSID_4_4_B_D*PMSID_4_4_F_D -> 0 | E58: 0 | F58: 0 | G58: - | K58: 0 min

Sheet Tag 5
A1: Entwurf | B1: =Protokollname -> R-CHOP 14 - Rituximab 375 / Cyclophosphamid 750 / Doxorubicin 50 / Vincristin 2 / Prednisolon 100, diffus großzelliges B-Non-Hodgkin-Lymphom, Zyklus 1-6 (PID=112 V1.1) | L1: ="Z" & Zyklusnummer & "/d" & F9 -> Z1/d5
B2: =IF(PatientName="","",PatientName) -> Doe, John | G2: geb.: | H2: =PatientGeboren -> 1967-01-01 | I2: Alter | J2: =DATEDIF(PatientGeboren,NOW(),"y")&"J "&MOD(DATEDIF(PatientGeboren,NOW(),"m"),12)&"M" -> 54J 8M | K2: Geschlecht | L2: =PatientGeschlecht -> m
C3: Diagnose | D3: =IF(Diagnose="","-",Diagnose) -> diffus großzelliges NHL | G3: Stadium | H3: =IF(Stadium="","",Stadium) -> IIB | I3: Therapiemodus | J3: =IF(Therapiemodus<>"",Therapiemodus,"") -> Erstlinie | K3: Erstdiagnose | L3: =IF(ErstdiagnoseDatum,ErstdiagnoseDatum,"") -> 2021-09-06
C4: Größe | D4: =GroesseCM_4 -> 170 | E4: Gewicht | F4: =KG_4 -> 75 | G4: KOF | H4: =KG_5^0.425*GroesseCM_5^0.725/139.315 -> 1.861995494 | I4: Infusionsarm | J4: =PatientInfusionsarm -> rechts | K4: Pat-ID | L4: =IF(PatientID="","",PatientID) -> 5
C5: Serum-Kreatinin | D5: =SerumKreatinin_4 -> 0.8 | E5: Datum | F5: =SerumKreatininDatum_4 ->  | G5: ="GFR " & shortGFR(sGFR) -> GFR NM | H5: =fGFR(F4,D4,PatientAlter,PatientGeschlecht,D5) -> 102.3168019 | I5: Port | J5: =PatientPort -> rechts | K5: Auftragsnummer | L5: =IF(Auftragsnummer="","",Auftragsnummer) -> 5
C6: erster Tag | D6: =Therapiebeginn -> 2021-09-06 | E6: Anzahl Zyklen | F6: =EmpfZyklen -> 6 | G6: Intervalltage | H6: =IntervallTage -> 14 | I6: erster Zyklus | J6: =DatumErsterZyklus -> 2021-09-06 | K6: nächster Zyklus | L6: =nächsterZyklus -> 2021-09-20
C7: Dateipfad | D7: =Dateipfad -> C:\Users\wicken\Desktop\opti-demo-excel\Demo_R-CHOP 14 (RITU375_CYCL750_DOXO50_VNCR2_PRED100), DLBCL, Z1-6_PID112_V1_1.xlsm
C9: Therapiedatum | D9: =PDateOV_5 -> 2021-09-10 | E9: Zyklustag: | F9: 5 | G9: Zyklus: | H9: =Zyklusnummer -> 1 | I9: Uhrzeit: | J9: 00:00:00
B10: Appl. Art | C10: Medikament, Substanz | D10: Dosis, Einheit | E10: normale Dosierung | F10: % Anteil Normaldosis | G10: Trägerlsg. Volumen | I10: Ablauf | K10: Dauer | L10: Hdz. Arzt Uhrzeit
B11: Flüssigkeitszufuhr: Jonosteril | L11: Zugangsart: peripher venös
B12: i.v. | C12: Jonosteril | D12: =PMSID_4241_5_B_D*1*PMSID_4241_5_F_D -> 0 | E12: 500 | F12: 0 | G12: - | I12: 60 min vor Rituximab (d1) | K12: 60 min
B14: Allergieprophylaxe: Rituximab Allergieprophylaxe (Paracetamol, Dimetinden) | L14: Zugangsart: peripher venös
B15: p.o. | C15: Paracetamol | D15: =PMSID_4242_5_B_D*1*PMSID_4242_5_F_D -> 0 | E15: 1000 | F15: 0 | G15: 50 ml | I15: 60 min vor Rituximab (d1) | K15: 0 min
B17: i.v. | C17: Dimetinden | D17: =PMSID_4243_5_B_D*1*PMSID_4243_5_F_D -> 0 | E17: 4 | F17: 0 | G17: NaCl 0,9%, 50 ml | I17: 30 min vor Rituximab (d1) | K17: 5 min
B19: Antiemese: Emetogenität moderat, GRAN i.v., ohne DEXA d1-3 | L19: Zugangsart: peripher venös
B20: i.v. | C20: Granisetron | D20: =PMSID_4244_5_B_D*1*PMSID_4244_5_F_D -> 0 | E20: 1 | F20: 0 | G20: NaCl 0,9%, 50 ml | I20: 15 min vor Rituximab (d1) | K20: 5 min
B22: Supportive Therapie: Mesna i.v., Stunde 0 (vor), p.o. 2h, 6 h nach Beginn Cyclophosphamid | L22: Zugangsart: peripher venös
B23: i.v. | C23: Mesna | D23: =PMSID_4245_5_B_D*KOF_5*PMSID_4245_5_F_D -> 0 | E23: 150 | F23: 0 | G23: - | I23: 1 min vor Cyclophosphamid (d1) | K23: 1 min
B25: p.o. | C25: Mesna | D25: =PMSID_4246_5_B_D*KOF_5*PMSID_4246_5_F_D -> 0 | E25: 300 | F25: 0 | G25: - | I25: 60 min nach Cyclophosphamid (d1) | K25: 0 min
B27: p.o. | C27: Mesna | D27: =PMSID_4247_5_B_D*KOF_5*PMSID_4247_5_F_D -> 0 | E27: 300 | F27: 0 | G27: - | I27: 5 h nach Cyclophosphamid (d1) | K27: 0 min
B29: Medikamentöse Tumortherapie: R-CHOP (RITU + CHOP d1) | L29: Zugangsart: zentral venös
B30: p.o. | C30: Prednisolon | D30: =PMSID_4240_5_B_D*1*PMSID_4240_5_F_D -> 100 | E30: 100 | F30: 1 | G30: - | I30: 1-0-0-0 | K30: 0 min
B32: i.v. | C32: Rituximab | D32: =PMSID_4236_5_B_D*KOF_5*PMSID_4236_5_F_D -> 0 | E32: 375 | F32: 0 | G32: NaCl 0,9%, 500 ml | I32: Reihenfolge | K32: 4 h
B34: i.v. | C34: Cyclophosphamid | D34: =PMSID_4237_5_B_D*KOF_5*PMSID_4237_5_F_D -> 0 | E34: 750 | F34: 0 | G34: NaCl 0,9%, 500 ml | I34: Reihenfolge | K34: 60 min
B36: i.v. | C36: Doxorubicin | D36: =PMSID_4238_5_B_D*KOF_5*PMSID_4238_5_F_D -> 0 | E36: 50 | F36: 0 | G36: Glucose 5%, 250 ml | I36: Reihenfolge | K36: 15 min
B38: i.v. | C38: Vincristin | D38: =PMSID_4239_5_B_D*1*PMSID_4239_5_F_D -> 0 | E38: 2 | F38: 0 | G38: NaCl 0,9%, 50 ml | I38: Reihenfolge | K38: 3 min
B40: Flüssigkeitszufuhr: Hydrierung nach Vincristin | L40: Zugangsart: peripher venös
B41: i.v. | C41: Jonosteril | D41: =PMSID_4248_5_B_D*1*PMSID_4248_5_F_D -> 0 | E41: 250 | F41: 0 | G41: - | I41: 0 min nach Vincristin (d1) | K41: 15 min
B43: Hämatopoetische Wachstumsfaktoren: FN-Risiko über 20%, G-CSF langwirksam, pegyliert | L43: Zugangsart: - entfällt -
B44: s.c. | C44: Pegfilgrastim | D44: =PMSID_4249_5_B_D*1*PMSID_4249_5_F_D -> 0 | E44: 6 | F44: 0 | G44: - | I44: 24 h nach Vincristin (d1) | K44: 0 min
B46: Infektionsprophylaxe: Infektionsprophylaxe oral, lymphatische Neoplasien | L46: Zugangsart: - entfällt -
B47: p.o. | C47: Cotrimoxazol | D47: =PMSID_4251_5_B_D*1*PMSID_4251_5_F_D -> 960 | E47: 960 | F47: 1 | G47: - | I47: 1-0-0-0 | K47: 0 min
B49: p.o. | C49: Amphotericin B | D49: =PMSID_4252_5_B_D*1*PMSID_4252_5_F_D -> 100 | E49: 100 | F49: 1 | G49: - | I49: 1-1-1-1 | K49: 0 min
B51: Sonstige Therapie: | L51: Zugangsart: Keine Angabe
B52: p.o. | D52: =PMSID_1_5_B_D*PMSID_1_5_F_D -> 0 | E52: 0 | F52: 0 | G52: - | K52: 0 min
B54: p.o. | D54: =PMSID_2_5_B_D*PMSID_2_5_F_D -> 0 | E54: 0 | F54: 0 | G54: - | K54: 0 min
B56: p.o. | D56: =PMSID_3_5_B_D*PMSID_3_5_F_D -> 0 | E56: 0 | F56: 0 | G56: - | K56: 0 min
B58: p.o. | D58: =PMSID_4_5_B_D*PMSID_4_5_F_D -> 0 | E58: 0 | F58: 0 | G58: - | K58: 0 min
